{"text_format":"1","workbook":"xlsx","n_sheets":3,"sheets":["Antragsformular","Anwenderdokumentation","Versionierung"],"not_rendered":{"charts":0,"images":15,"macros":1,"external_links":0,"defined_names":1,"comments":0,"pivot_tables":0},"unopened":[],"bounds":{"document_bytes":16777216,"sheet_cells":100000,"rows_first":2000,"rows_last":500,"rows_between":2000,"halvings":0,"cell_chars":16384,"cell_head_chars":4096},"cells_cut":0,"cells_raw":0,"read":"whole","date_system":"1900"}

{"sheet":"Antragsformular","index":0,"n_rows":206,"n_cols":13,"rows_kept":206,"cut":false,"hidden":false,"merged":[[80,6,80,8],[81,3,81,5],[81,6,81,8],[109,9,109,10],[99,9,99,10],[102,3,102,5],[102,6,102,8],[144,2,144,11],[66,3,66,5],[66,6,66,8],[67,3,67,5],[67,6,67,8],[68,3,68,5],[68,6,68,8],[69,3,69,5],[69,6,69,8],[70,3,70,5],[70,6,70,8],[71,3,71,5],[71,6,71,8],[72,3,72,5],[72,6,72,8],[73,3,73,5],[73,6,73,8],[74,3,74,5],[74,6,74,8],[75,3,75,5],[138,11,138,12],[139,11,139,12],[140,11,140,12],[141,11,141,12],[59,8,59,11],[59,6,59,7],[126,0,130,2],[126,3,126,4],[126,6,126,7],[126,9,126,10],[127,3,127,4],[127,6,127,7],[127,9,127,10],[128,3,128,4],[128,6,128,7],[128,9,128,10],[129,3,129,4],[129,6,129,7],[129,9,129,10],[130,3,130,5],[130,7,130,10],[107,6,107,8],[99,3,99,5],[109,6,109,8],[137,0,142,2],[137,3,137,5],[137,6,137,10],[138,3,138,5],[139,3,139,5],[140,3,140,5],[141,3,141,5],[138,6,138,10],[139,6,139,10],[140,6,140,10],[141,6,141,10],[105,9,105,10],[106,3,106,5],[105,6,105,8],[106,6,106,8],[106,9,106,10],[103,3,103,5],[103,6,103,8],[103,9,103,10],[104,3,104,5],[102,9,102,10],[105,3,105,5],[104,6,104,8],[104,9,104,10],[107,3,107,5],[115,3,115,5],[115,6,115,8],[115,9,115,10],[116,3,116,5],[116,6,116,8],[116,9,116,10],[111,3,111,5],[111,6,111,8],[111,9,111,10],[112,3,112,5],[112,6,112,8],[112,9,112,10],[113,3,113,5],[113,6,113,8],[113,9,113,10],[110,9,110,10],[108,9,108,10],[109,3,109,5],[107,9,107,10],[152,0,163,2],[54,0,54,12],[71,9,71,10],[72,9,72,10],[73,9,73,10],[77,9,77,10],[78,9,78,10],[81,9,81,10],[97,3,97,5],[100,5,100,10],[114,3,114,5],[114,6,114,8],[114,9,114,10],[82,7,82,10],[84,6,84,8],[84,3,84,5],[85,3,85,5],[67,9,67,10],[68,9,68,10],[74,9,74,10],[75,9,75,10],[108,3,108,5],[108,6,108,8],[110,6,110,8],[165,0,192,2],[172,3,172,11],[174,3,174,11],[176,4,176,11],[165,3,165,11],[185,3,185,11],[186,3,186,12],[175,4,175,11],[170,3,170,12],[178,3,178,11],[180,4,180,11],[179,4,179,11],[181,4,181,11],[182,5,182,11],[183,5,183,11],[184,5,184,11],[177,3,177,11],[169,3,169,11],[166,5,166,7],[166,8,166,10],[173,3,173,11],[190,3,190,5],[4,1,5,12],[7,1,13,5],[16,0,24,2],[16,3,16,11],[17,3,17,11],[18,3,18,11],[19,8,19,10],[20,8,20,10],[21,8,21,10],[22,8,22,10],[23,8,23,10],[20,5,20,7],[21,5,21,7],[22,5,22,7],[23,5,23,7],[86,6,86,8],[97,6,97,8],[97,9,97,10],[90,6,90,8],[90,9,90,10],[91,3,91,5],[91,6,91,8],[96,6,96,8],[96,9,96,10],[94,3,94,5],[94,6,94,8],[89,9,89,10],[95,3,95,5],[95,6,95,8],[95,9,95,10],[89,3,89,5],[89,6,89,8],[87,6,87,8],[88,6,88,8],[47,3,47,7],[66,0,82,2],[27,3,27,5],[27,7,27,11],[29,3,29,5],[29,7,29,11],[37,3,37,5],[37,7,37,11],[39,4,39,5],[39,7,39,8],[35,3,35,11],[39,10,39,11],[31,10,31,11],[32,9,32,11],[75,6,75,8],[76,3,76,5],[76,6,76,8],[77,3,77,5],[77,6,77,8],[78,3,78,5],[78,6,78,8],[79,3,79,5],[79,6,79,8],[80,3,80,5],[90,3,90,5],[94,9,94,10],[26,0,32,2],[32,3,32,5],[85,6,85,8],[85,9,85,10],[86,9,86,10],[76,9,76,10],[44,0,53,2],[79,9,79,10],[80,9,80,10],[84,9,84,10],[31,4,31,5],[31,7,31,8],[59,0,64,2],[34,0,39,2],[41,0,42,2],[42,3,42,11],[44,3,44,7],[46,3,46,7],[48,3,48,7],[50,3,50,7],[52,3,52,7],[45,3,45,7],[92,6,92,8],[92,9,92,10],[93,3,93,5],[93,6,93,8],[93,9,93,10],[96,3,96,5],[98,3,98,5],[98,6,98,8],[98,9,98,10],[162,3,162,10],[117,3,117,5],[187,3,187,12],[117,6,117,8],[117,9,117,10],[120,3,120,4],[120,6,120,7],[124,3,124,5],[124,7,124,10],[146,6,146,10],[147,6,147,10],[148,6,148,10],[149,6,149,10],[121,9,121,10],[122,3,122,4],[122,6,122,7],[122,9,122,10],[123,3,123,4],[123,6,123,7],[123,9,123,10],[118,5,118,10],[136,0,136,12],[142,3,142,5],[142,7,142,10],[49,3,49,7],[51,3,51,7],[53,3,53,7],[55,0,57,2],[55,3,55,12],[84,0,99,2],[120,0,124,2],[102,0,117,2],[110,3,110,5],[82,3,82,5],[69,9,69,10],[70,9,70,10],[66,9,66,10],[120,9,120,10],[121,3,121,4],[121,6,121,7],[87,9,87,10],[88,9,88,10],[99,6,99,8],[86,3,86,5],[87,3,87,5],[88,3,88,5],[91,9,91,10],[92,3,92,5]]}
[]
[]
[]
[]
[null,"Antrag auf Gewährung von Zuschüssen im Projekt\nELBE – Electrify Buildings for EVs "]
[]
[]
[null,"An die \nHamburgische Investitions- und Förderbank\nBesenbinderhof 31\n20097 Hamburg"]
[null,null,null,null,null,null,null,null,"Eingangsvermerk IFB"]
[]
[null,null,null,null,null,null,null,null,"Datum:"]
[]
[null,null,null,null,null,null,null,null,"Antragsnummer:"]
[]
[]
[]
["Förderung aus anderen Programmen",null,null,"Gemäß der Förderrichtlinien kann die Förderung unter Beachtung der EU-Beihilferechts ggf. mit anderen Fördermitteln kombiniert werden. Für diese weiteren Fördermittel ist jeweils ein eigener Antrag bei der zuständigen Stelle einzureichen."]
[null,null,null,"Es wird bestätigt, für dieselben förderfähigen Ausgaben keine weiteren Beihilfen im Sinne des EU-Beihilferechts für dieses Investitionsvorhaben beantragt oder erhalten zu haben, oder noch zu beantragen. Andernfalls wird der Antragsteller dies der IFB unverzüglich mitteilen. Die Zuwendung ist zurückzuzahlen, soweit die Zuwendung sich auf Investitionen bezieht, die vollständig oder teilweise unzulässig durch andere Beihilfen gefördert werden.",null,null,null,null,null,null,null,null,2]
[null,null,null,"Es wird bestätigt, für dieselben förderfähigen Ausgaben folgende weiteren Beihilfen im Sinne des EU-Beihilferechts für dieses Investitionsvorhaben beantragt oder erhalten zu haben. Dieses gilt gleichermaßen für die beabsichtigte Antragstellung von Beihilfen ggf. auch nach Abschluss der Maßnahmen.",null,null,null,null,null,null,null,null,1]
[null,null,null,"Fördergeber",null,"Förderprogramm/Nr.",null,null,"Zuschuss      Darlehen",null,null,"Förderhöhe in EUR"]
[null,null,null,"IFB Hamburg"]
[null,null,null,"KfW"]
[null,null,null,"Bafa"]
[null,null,null,"Sonstiges"]
[]
[]
["Antragsteller",null,null,"Firma",null,null,null,"Ansprechpartner"]
[]
[null,null,null,"Straße und Hausnummer",null,null,null,"Email"]
[]
[null,null,null,"PLZ","Ort",null,null,"Telefon ",null,null,"Fax"]
[]
[null,null,null,"Art des Antragstellers",null,null,null,"",null,{"$f":"IF($G$200=7,\"Bitte Art des Antrag-stellers auswählen\",\"\")","v":""}]
[]
["ggf. Bevoll- mächtigter ",null,null,"Firma"]
[]
[null,null,null,"Straße und Hausnummer",null,null,null,"Email"]
[]
[null,null,null,"PLZ","Ort",null,null,"Telefon ",null,null,"Fax"]
[]
[]
["Ladeinfrastruk-turbetreiber",null,null,"Firma"]
[]
[]
["Objektdaten je Ladepunkt\n(bei weiteren Objekten bitte Anlage beifügen)",null,null,"Straße und Hausnummer, PLZ in Hamburg\n",null,null,null,null,"     AC / DC           kW Leistung",null,"Anzahl"," Nutzung"]
[]
[null,null,null,"Straße und Hausnummer, PLZ in Hamburg\n",null,null,null,null,"     AC / DC           kW Leistung",null,"Anzahl"," Nutzung"]
[]
[null,null,null,"Straße und Hausnummer, PLZ in Hamburg\n",null,null,null,null,"     AC / DC           kW Leistung",null,"Anzahl"," Nutzung"]
[]
[null,null,null,"Straße und Hausnummer, PLZ in Hamburg\n",null,null,null,null,"     AC / DC           kW Leistung",null,"Anzahl"," Nutzung"]
[]
[null,null,null,"Straße und Hausnummer, PLZ in Hamburg\n",null,null,null,null,"     AC / DC           kW Leistung",null,"Anzahl"," Nutzung"]
[]
["Beantragte Ausgaben"]
["Vorsteuerabzugs-berechtigung",null,null,"Ich/Wir erkläre(n), dass der Förderantrag gestellt wird als Unternehmen/juristische Person und"]
[null,null,null,0,"nicht vorsteuerabzugsberechtigt sind und einen entsprechenden Nachweis erbingen können"]
[null,null,null,null,"vom Vorsteuerabzug gebrauch machen"]
[]
["Art der Finanzierung",null,null,null,null,"Ich/Wir bebsichtigen die Ladestationen zu","","kaufen.",{"$f":"IF(G60=\"\",\"Bitte auswählen, ob gekauft oder geleast wird.\",\"\")","v":"Bitte auswählen, ob gekauft oder geleast wird."}]
[]
[null,null,null,null,null,"Das Leasingangebot umfasst folgende Positionen:",null,null,"Make-Ready-Kosten"]
[null,null,null,null,null,null,null,null,"Installationsausgaben"]
[null,null,null,null,null,null,null,null,"Betriebsausgaben"]
[]
[]
["Hardware-beschaffung",null,null,"Art der Ausgaben\n(Freitext)",null,null,{"$f":"IF($D$57=0,\"Bitte auswählen, ob VSt-abzugsberechtigt\",IF($D$57=1,\"Preis pro Stück \n(brutto in EUR)\",\"Preis pro Stück\n(netto in EUR)\"))","v":"Bitte auswählen, ob VSt-abzugsberechtigt"},{"$f":"IF($F$58=4,\"Bitte auswählen, ob VSt-abzugsberechtigt\",IF($F$58=2,\"Preis pro Stück \n(brutto in EUR)\",\"Preis pro Stück\n(netto in EUR)\"))","v":"Preis pro Stück\n(netto in EUR)"},"Preis pro Stück\n(netto in EUR)","Anzahl\n(Stück)",null,"Beantragte Ausgaben (in EUR)"]
[null,null,null,null,null,null,null,null,null,null,null,{"$f":"G68*J68","v":0},{"$f":"ROUND(IF(($C$201-I68)/30<0,0,IF(($C$201-I68)/30>G68,G68,((YEAR($C$201)-YEAR(I68))*12+IF(MONTH($C$201)<MONTH(I68),-(MONTH(I68)-MONTH($C$201)),(MONTH($C$201)-MONTH(I68)))+IF(DAY(I68)<DAY($C$201),1,0)))),0)","v":0}]
[null,null,null,null,null,null,null,null,null,null,null,{"$f":"G69*J69","v":0},0]
[null,null,null,null,null,null,null,null,null,null,null,0,0]
[null,null,null,null,null,null,null,null,null,null,null,0,0]
[null,null,null,null,null,null,null,null,null,null,null,0,0]
[null,null,null,null,null,null,null,null,null,null,null,0,0]
[null,null,null,null,null,null,null,null,null,null,null,0,0]
[null,null,null,null,null,null,null,null,null,null,null,0,0]
[null,null,null,null,null,null,null,null,null,null,null,0,0]
[null,null,null,null,null,null,null,null,null,null,null,0,0]
[null,null,null,null,null,null,null,null,null,null,null,0,0]
[null,null,null,null,null,null,null,null,null,null,null,0,0]
[null,null,null,null,null,null,null,null,null,null,null,0,0]
[null,null,null,null,null,null,null,null,null,null,null,0,0]
[null,null,null,null,null,null,null,null,null,null,null,0,0]
[null,null,null,null,null,null,null,"Summe beantragte Ausgaben",null,null,null,{"$f":"SUM(IF(G60=\"leasen.\",0,L68:L82))","v":0}]
[]
["Make-ready-Kosten",null,null,"Art der Ausgaben\n(Freitext)",null,null,{"$f":"IF($D$57=0,\"Bitte auswählen, ob VSt-abzugsberechtigt\",IF($D$57=1,\"Preis pro Stück \n(brutto in EUR)\",\"Preis pro Stück\n(netto in EUR)\"))","v":"Bitte auswählen, ob VSt-abzugsberechtigt"},{"$f":"IF($F$58=4,\"Bitte auswählen, ob VSt-abzugsberechtigt\",IF($F$58=2,\"Preis pro Stück \n(brutto in EUR)\",\"Preis pro Stück\n(netto in EUR)\"))","v":"Preis pro Stück\n(netto in EUR)"},"Preis pro Stück\n(netto in EUR)","Anzahl\n(Stück)",null,"Beantragte Ausgaben (in EUR)"]
[null,null,null,null,null,null,null,null,null,null,null,{"$f":"G86*J86","v":0},{"$f":"ROUND(IF(($C$201-I86)/30<0,0,IF(($C$201-I86)/30>G86,G86,((YEAR($C$201)-YEAR(I86))*12+IF(MONTH($C$201)<MONTH(I86),-(MONTH(I86)-MONTH($C$201)),(MONTH($C$201)-MONTH(I86)))+IF(DAY(I86)<DAY($C$201),1,0)))),0)","v":0}]
[null,null,null,null,null,null,null,null,null,null,null,{"$f":"G87*J87","v":0},0]
[null,null,null,null,null,null,null,null,null,null,null,0,0]
[null,null,null,null,null,null,null,null,null,null,null,0,0]
[null,null,null,null,null,null,null,null,null,null,null,0,0]
[null,null,null,null,null,null,null,null,null,null,null,0,0]
[null,null,null,null,null,null,null,null,null,null,null,0,0]
[null,null,null,null,null,null,null,null,null,null,null,0,0]
[null,null,null,null,null,null,null,null,null,null,null,0,0]
[null,null,null,null,null,null,null,null,null,null,null,0,0]
[null,null,null,null,null,null,null,null,null,null,null,0,0]
[null,null,null,null,null,null,null,null,null,null,null,0,0]
[null,null,null,null,null,null,null,null,null,null,null,0,0]
[null,null,null,null,null,null,null,null,null,null,null,0,0]
[null,null,null,null,null,null,null,null,null,null,null,0,0]
[null,null,null,null,null,"Summe beantragte Ausgaben",null,null,null,null,null,{"$f":"SUM(L86:L100)","v":0}]
[]
["Installations-kosten",null,null,"Art der Ausgaben\n(Freitext)",null,null,{"$f":"IF($D$57=0,\"Bitte auswählen, ob VSt-abzugsberechtigt\",IF($D$57=1,\"Preis pro Stück \n(brutto in EUR)\",\"Preis pro Stück\n(netto in EUR)\"))","v":"Bitte auswählen, ob VSt-abzugsberechtigt"},{"$f":"IF($F$58=4,\"Bitte auswählen, ob VSt-abzugsberechtigt\",IF($F$58=2,\"Preis pro Stück \n(brutto in EUR)\",\"Preis pro Stück\n(netto in EUR)\"))","v":"Preis pro Stück\n(netto in EUR)"},"Preis pro Stück\n(netto in EUR)","Anzahl\n(Stück)",null,"Beantragte Ausgaben (in EUR)"]
[null,null,null,null,null,null,null,null,null,null,null,{"$f":"G104*J104","v":0},{"$f":"ROUND(IF(($C$201-I104)/30<0,0,IF(($C$201-I104)/30>G104,G104,((YEAR($C$201)-YEAR(I104))*12+IF(MONTH($C$201)<MONTH(I104),-(MONTH(I104)-MONTH($C$201)),(MONTH($C$201)-MONTH(I104)))+IF(DAY(I104)<DAY($C$201),1,0)))),0)","v":0}]
[null,null,null,null,null,null,null,null,null,null,null,{"$f":"G105*J105","v":0},0]
[null,null,null,null,null,null,null,null,null,null,null,0,0]
[null,null,null,null,null,null,null,null,null,null,null,0,0]
[null,null,null,null,null,null,null,null,null,null,null,0,0]
[null,null,null,null,null,null,null,null,null,null,null,0,0]
[null,null,null,null,null,null,null,null,null,null,null,0,0]
[null,null,null,null,null,null,null,null,null,null,null,0,0]
[null,null,null,null,null,null,null,null,null,null,null,0,0]
[null,null,null,null,null,null,null,null,null,null,null,0,0]
[null,null,null,null,null,null,null,null,null,null,null,0,0]
[null,null,null,null,null,null,null,null,null,null,null,0,0]
[null,null,null,null,null,null,null,null,null,null,null,0,0]
[null,null,null,null,null,null,null,null,null,null,null,0,0]
[null,null,null,null,null,null,null,null,null,null,null,0,0]
[null,null,null,null,null,"Summe beantragte Ausgaben",null,null,null,null,null,{"$f":"SUM(L104:L118)","v":0}]
[]
["Betriebs-ausgaben",null,null,"Betreiber\n(Firma)",null,{"$f":"IF($D$57=0,\"Bitte auswählen, ob VSt-abzugsberechtigt\",IF($D$57=1,\"Ges.-Vertragssumme\n(brutto in EUR)\",\"Ges.-Vertragssumme\n(netto in EUR)\"))","v":"Bitte auswählen, ob VSt-abzugsberechtigt"},"Vertragsdauer\n(in Monaten)",null,"Gültigkeit ab \n(Datum)","Anzahl\n(Stück)",null,"Beantragte  Ausgaben (in EUR)",false]
[null,null,null,null,null,null,null,null,null,null,null,{"$f":"MIN(IF(J122=0,0,IF(I122<$C$204,0,IF(G122=0,0,IF(F122=0,0,F122*J122/G122*M122)))),F122*J122)","v":0},{"$f":"ROUND(IF(($C$201-I122)/30<0,0,IF(($C$201-I122)/30>G122,G122,((YEAR($C$201)-YEAR(I122))*12+IF(MONTH($C$201)<MONTH(I122),-(MONTH(I122)-MONTH($C$201)),(MONTH($C$201)-MONTH(I122)))+IF(DAY(I122)<DAY($C$201),1,0)))),0)","v":0}]
[null,null,null,null,null,null,null,null,null,null,null,{"$f":"MIN(IF(J123=0,0,IF(I123<$C$204,0,IF(G123=0,0,IF(F123=0,0,F123*J123/G123*M123)))),F123*J123)","v":0},0]
[null,null,null,null,null,null,null,null,null,null,null,0,0]
[null,null,null,null,null,null,null,"Summe beantragte Ausgaben",null,null,null,{"$f":"IF(M121=TRUE,0,SUM(L122:L124))","v":0}]
[]
["Leasing-ausgaben",null,null,"Leasinggeber\n(Firma)",null,{"$f":"IF($D$57=0,\"Bitte auswählen, ob VSt-abzugsberechtigt\",IF($D$57=1,\"Monatl. Leasingrate\n(brutto in EUR)\",\"Monatl. Leasingrate\n(netto in EUR)\"))","v":"Bitte auswählen, ob VSt-abzugsberechtigt"},"Vertragsdauer\n(in Monaten)",null,"Gültigkeit ab \n(Datum)","Anzahl\n(Stück)",null,"Beantragte  Ausgaben (in EUR)"]
[null,null,null,null,null,null,null,null,null,null,null,{"$f":"MIN(IF(J128=0,0,IF(I128<$C$204,0,IF(G128=0,0,IF(F128=0,0,F128*J128*M128)))),F128*J128*G128)","v":0},{"$f":"ROUND(($C$201-I128)/30,0)","v":1493}]
[null,null,null,null,null,null,null,null,null,null,null,{"$f":"MIN(IF(J129=0,0,IF(I129<$C$204,0,IF(G129=0,0,IF(F129=0,0,F129*J129*M129)))),F129*J129*G129)","v":0},{"$f":"ROUND(($C$201-I129)/30,0)","v":1493}]
[null,null,null,null,null,null,null,null,null,null,null,0,{"$f":"ROUND(($C$201-I130)/30,0)","v":1493}]
[null,null,null,null,null,null,null,"Summe beantragte Ausgaben",null,null,null,{"$f":"SUM(L128:L130)","v":0}]
[]
[null,null,null,null,null,null,null,null,null,null,"Gesamtsumme beantragte Ausgaben",{"$f":"L83+L101+L119+L125+L131","v":0}]
[null,null,null,null,null,null,null,null,null,null,{"$f":"IF($G$200=7,\"Bitte Art des Antragstellers auswählen\",\"Förderquote\")","v":"Förderquote"},{"$f":"60%","v":0.6}]
[null,null,null,null,null,null,null,null,null,null,"Maximale Förderung",{"$f":"L133*L134","v":0}]
[]
[{"$f":"IF(L139=\"\",\"Sollten mit dem Betrieb der Ladestationen Einnahmen erzielt werden, so sind diese vorab hier anzumelden. Nicht angegemeldete Einnahmen müssen von der Förderung abgezogen werden. Sollten Sie keine Einnahmen planen, tragen Sie bitte 0,00 ein\",\"Voraussichtliche Einnahmen\")","v":"Sollten mit dem Betrieb der Ladestationen Einnahmen erzielt werden, so sind diese vorab hier anzumelden. Nicht angegemeldete Einnahmen müssen von der Förderung abgezogen werden. Sollten Sie keine Einnahmen planen, tragen Sie bitte 0,00 ein"}]
["Voraussichtliche Einnahmen*",null,null,"Quelle der Einnahme",null,null,"Grund der Einnahme",null,null,null,null,"Voraussichtliche Einnahmen  (in EUR)"]
[]
[]
[]
[]
[null,null,null,null,null,null,null,"Summe voraussichtliche Einnahmen",null,null,null,{"$f":"SUM(L139:L142)","v":0}]
[]
[null,"*\n","Hierbei sind nur Einnahmen einzutragen, die durch die geförderte Ladeinfrastruktur erzielt werden. Stehen diesen Einnahmen weitere Kosten entgegen (wie bspw. Kosten für den Strombezug), so sind diese von den Einnahmen abzuziehen. Beispiele für zweckbezogne Einnahmen sind Service- und Ladegebühren oder zusätzliche Stellplatzmiete während des Bewilligungszeitraums."]
[]
[null,null,null,null,null,null,"Gesamtsumme beantragte Ausgaben",null,null,null,null,{"$f":"L133","v":0}]
[null,null,null,null,null,null,"Eigenmittel Antragsteller",null,null,null,null,{"$f":"MAX(0,(L147-L149-L150))","v":0}]
[null,null,null,null,null,null,"Eigenmittelersetzende Einnahmen",null,null,null,null,{"$f":"L143","v":0}]
[null,null,null,null,null,null,"Beantragte Förderung",null,null,null,null,{"$f":"MAX(0,MIN(L135,L147-L149))","v":0}]
[]
[]
["Erforderliche Anlagen zu diesem Antrag"]
[null,null,null,null,null,null,null,null,null,null,null,"beigefügt"]
[null,null,null,"- Legitimationsnachweis des/der Antragsteller (z. B. HR- Auszug)"]
[null,null,null,"- Eigentumsnachweis / aktueller Grundbuchauszug / Gestattungsvertrag"]
[null,null,null,"- Angebote zu den beantragten Positionen"]
[null,null,null,"- Lageplan mit Darstellung des Ladepunktes"]
[null,null,null,"- Bestätigung des Ladeinfrastrukturbetreibers (CPOs) zur Erfüllung der technischen Anforderungen"]
[null,null,null,"- KMU-Formular (soweit zutreffend)"]
[null,null,null,"- Bestätigung des Steuerberaters zur Höhe der Abschreibung"]
[null,null,null,"- Bestätigung der nicht wirtschaftlichen Tätigkeit (nur bei öffentlichen Unternehmen)"]
[null,null,null,"- Auskunft der Hausbank (z.B. Bankformular \"Auskunft\" mit Angaben zur bestehenden \n  Bankverbindung, allgemeinen Beurteilung, Kreditbeurteilung oder Angaben zur \n  Geschäftsbeziehungen und deren allgemeiner Beurteilung in Anlehnung an das \n  Bankformular \"Auskunft\")"]
[]
[]
["Erklärung des Antragstellers",null,null,"Das Objekt wurde bereits bei der WK/IFB gefördert:"]
[null,null,null,"nein","ja","  Antragsnummer (falls vorliegend):"]
[]
[null,null,null,"Ich/Wir erkläre(n), dass es sich bei dem Antragsteller nicht um ein Unternehmen in Schwierigkeiten handelt.1"]
[null,null,null,"Der Antragsteller erklärt, dass über sein Vermögen kein Insolvenzverfahren beantragt oder eröffnet worden ist, er nicht zur Abgabe der Vermögensauskunft nach § 802c Zivilprozessordnung (ZPO) oder § 284 Abgabenordnung (AO) verpflichtet ist oder ihm diese bereits abgenommen wurde. \nGleiches gilt für eine durch einen gesetzlichen Vertreter vertretene juristische Person, sofern diesen als gesetzlicher Vertreter die entsprechenden Verpflichtungen aus § 802c ZPO oder § 284 AO treffen."]
[null,null,null,"Ebenso erkläre(n) ich/wir, keiner Rückforderungsanordnung aufgrund einer früheren Entscheidung der EU-Komission zur Feststellung der Rechtswidrigkeit und Unvereinbarkeit einer Beihhilfe mit dem gemeinsamen Markt nicht Folge geleistet zu haben.2"]
[null,null,null,"Ich/Wir erkläre(n), dass ich/wir das Vorhaben nur mit einem nicht rückzahlbaren Zuschuss umsetze(n) kann/können."]
[null,null,null,"Ich/Wir erkläre(n), dass uns die für die Beantragung der Fördermittel maßgebliche Produktinformation, Förderrichtlinie sowie der Förderaufruf vorliegen und deren Inhalte und Bedingungen bekannt sind."]
[null,null,null,"Ich/Wir beantrage/n, bei einer etwaigen Verlängerung des Förderzeitraums bis 31.08.2022 bis zu diesem Zeitpunkt, einschließlich der damit verbundenen Förderung teilnehmen zu können."]
[null,null,null,"Mir/Uns ist bekannt, dass"]
[null,null,null,null,"- jeweils die zum Zeitpunkt der Antragstellung gültigen Fördergrundsätze angewendet werden."]
[null,null,null,null,"- mündlich erteilte Auskünfte und Ratschläge durch Mitarbeiter/innen der IFB unverbindlich gelten."]
[null,null,null,"Subventionserhebliche Tatsachen\nMir ist bekannt, dass es sich bei Zuschüssen der IFB  aus diesem Förderprogramm um  Subventionen handelt. Ich bin darüber unterrichtet, dass meine Angaben zur Person und zur Firma, zum Objekt und zum  Vorhaben, zu den versorgten Gebäuden, sowie die Angaben in der „Erklärung des Antragstellers“ subventionserheblich im Sinne des §264 StGB in Verbindung mit § 2 Subventionsgesetz sind. Mir sind die nach § 3 des Subventionsgesetzes bestehenden Mitteilungspflichten bekannt, insbesondere werde ich jede Abweichung von den bestehenden Angaben unverzüglich der IFB mitteilen."]
[null,null,null,"Zustimmung zur Einbindung der Ladeinfrastruktur in das Förderprojekt ELBE\nDie für die Ladeinfrastruktur gewährte Förderung setzt auf das vom Bundesministerium für Wirtschaft und Energie geförderte Forschungsprojekt ELBE auf. Im Rahmen von ELBE sollen Untersuchungen zur Netzdienlichkeit der Ladeinfrastruktur durchgeführt werden. Die Förderempfänger stimmen bei einer Förderung der aufgebauten Ladeinfrastruktur daher den folgenden Punkten zu:"]
[null,null,null,null,"(1) Der Förderempfänger schließt einen Betreibervertrag mit einem Ladeinfrastrukturbetreiber (CPO),\n      der die in der Anlage 2 genannten Kriterien erfüllt."]
[null,null,null,null,"(2) Der Förderempfänger willigt ein, dass die Ladeleistung während eines Ladevorgangs begrenzt \n      werden kann. Dabei ist ein minimal nutzbarer Ladestrom von 8A je Phase  (netzseitig) jederzeit \n      verfügbar. Die Beschränkung erfolgt während der Projektlaufzeit maximal 4x pro Monat und für eine \n      Dauer von maximal 6 Stunden je Vorgang."]
[null,null,null,null,"(3) Während der Laufzeit des ELBE-Forschungsprojektes bis zum 30. September 2020 erfolgt eine \n      Datenerfassung zum Zweck der wissenschaftlichen Begleitforschung. Dazu gehört insbesondere \n      die anonymisierte Erfassung von:"]
[null,null,null,null,null,"a. Ladestart und Ende,"]
[null,null,null,null,null,"b. Ladeleistung,"]
[null,null,null,null,null,"c.  weiteren Energieflüssen, sofern im Rahmen des Projektes weitere Komponenten wie \n     Speicher, PV-Anlagen oder Wärmepumpen installiert werden. Die Daten werden \n     projektintern ausgewertet um die Funktionsfähigkeit zu evaluieren. Aggregierte und \n     anonymisierte Auswertungen werden zudem auf Fachkonferenzen präsentiert."]
[null,null,null,"Der Antragsteller wird auf die als Anlage beigefügte Information zum Datenschutz hingewiesen."]
[null,null,null,"Mir ist bekannt, dass eine Förderung ausgeschlossen ist, wenn Maßnahmen ohne Zustimmung der IFB  begonnen wurden. Dabei gilt als Beginn bereits die Auftragserteilung."]
[null,null,null,"Bitte drucken Sie das Antragsformular aus und reichen Sie es unterschrieben im Original an die oben angegebene Adresse ein."]
[]
[]
[]
[null,null,null,"Ort, Datum ",null,null,null,"Unterschrift der/des Antragsteller/s"]
[]
[]
[null,null,null,"1  Gemäß Definition AGVO Art. 2, Nr. 18 VO (EU) Nr. 651/2014 (ABl. L 187 vom 26.06.2014, S. 19)"]
[null,null,null,"2  Vgl. AGVO Art. 1, Abs. 4 VO (EU) Nr. 651/2014 (ABl. L 187 vom 26.06.2014, S. 17)"]
[]
[]
[]
[null,null,"Projektende","Setting LP",null,"KMU",1,"Vorsteuer","Make-ready",null,"Installation"]
[null,null,"2022-08-31","Mieterparkplätze",null,"WEG",null,"ja","ja",null,"ja"]
[null,null,null,"Besucherparkplätze",null,null,null,"nein","nein",null,"nein"]
[null,null,"Projektstart","Mitarbeiterparkplätze"]
[null,null,"2018-10-08","Eigene Flotte",null,null,null,null,"Art der LI",null,"Kaufen/leasen"]
[null,null,null,"Parkhausbetreiber",null,null,null,null,"AC",null,"kaufen."]
[null,null,null,null,null,null,null,null,"DC",null,"leasen."]

{"sheet":"Anwenderdokumentation","index":1,"n_rows":12,"n_cols":2,"rows_kept":12,"cut":false,"hidden":false,"merged":[[13,0,13,5],[7,0,7,2],[8,1,8,5],[9,0,9,5],[10,0,10,2],[11,1,11,5],[12,0,12,5],[0,0,1,2],[2,0,2,5],[5,1,5,5],[4,0,4,2],[6,0,6,5]]}
["Antrag auf Gewährung von Zuschüssen im \nProjekt ELBE – Electrify Buildings for EVs "]
[]
["Anwenderdokumentation"]
[]
["Ziel der Anwendung"]
[null,"Dieses Tool ermittelt im Rahmen des Förderprogramms ELBE - Electrify Buildings for Evs durch Angaben des Antragstellers die beantragte Fördersumme.\nDas Tool ist auf der IFB Homepage verschlüsselt eingestellt."]
[]
["Hinweise zur Anwendung"]
[null,"Das Dokument verfügt über ankreuzbare Kästchen und Dropdownmenüs. Bei den Dropdownmenüs hat der Antragsteller zwingend eine Auswahl vorzunehmen, da dies Einfluss auf die Berechnung hat. Rot hinterlegte Felder geben einen Hinweis, dass noch eine Auswahl zu treffen ist. Hat der Antragsteller alle erforderlichen Auswahlen in den Dropdownmenüs getroffen, verschwinden die rot hinterlegten Hinweisfelder.\nDie weiteren Eintragungen des Antragstellers erfolgen auf den hellblau hinterlegten Feldern. Alle weiteren Felder sind mit einem Schreibschutz versehen und für den Antragsteller gesperrt. Die Berechnung der Gesamtkosten sowie der Fördersumme erfolgen nach Eingabe der Daten in dem Tool automatisch.\n\nZur Einreichung des Antrags hat der Antragsteller das fertig ausgefüllte Dokument auszudrucken und unterschrieben mit den weiteren Antragsdokumenten (siehe Website der IFB) an die IFB zu versenden."]
[]
["Ergebnis"]
[null,"Nach Eingabe der Ausgaben (Kosten) errechnet sich das Ergebnis. Dieses befindet sich in einem dunkelgrau hinterlegten Textfeld am Ende der Seite \"Beantragte Ausgaben\". "]

{"sheet":"Versionierung","index":2,"n_rows":9,"n_cols":6,"rows_kept":9,"cut":false,"hidden":false,"merged":[[2,0,2,5],[0,0,1,2]]}
["Antrag auf Gewährung von Zuschüssen im \nProjekt ELBE – Electrify Buildings for EVs "]
[]
["Versionierung"]
[]
["Version ","Bearbeiter/in","Änderung","Datum ","Test ","Datum "]
["1.0","Steinkamp","Antragsdokument erstellt","2019-02-22"]
["2.0","Steinkamp","Felder zu Erträgen hinzugefügt","2019-09-20"]
["2.1","Winkelmann ","Anwenderdoku","2019-10-24"]
["2.2","Steinkamp ","Versionierung und Anwenderdoku beigefügt ","2019-10-30"]